Workbook

Sheet Topics
A1: Highline Excel 2016 Class 02: Excel Fundamentals: Formulas, Formula Types, Formula Elements, Functions & Excel's Golden Rule
A3: Topics:
A4: 1 | B4: Excel’s Golden Rule
A5: 2 | B5: Formula Types, Formula Elements, How Formulas Calculate, Formula Errors
A6: 3 | B6: Types of Formulas in Excel
A7: 4 | B7: Types of Formula Elements
A8: 5 | B8: Examples of Functions
A9: 6 | B9: COUNTIFS, SUMIFS, AVERAGEIFS and similar functions
A10: 7 | B10: VLOOKUP function:
A11: 8 | B11: IF Function
A12: 9 | B12: Types of Calculations
A13: 10 | B13: LARGE and SMALL functions
A14: 11 | B14: How Formulas Calculate (Order of Precedence)
A15: 12 | B15: 4 Steps to Finding Errors in Formulas
A16: 13 | B16: Types of Error Messages
A17: 14 | B17: When to use ROUND function
A18: 15 | B18: 3 ways to enter cell references into formulas:

Sheet Formula Notes
A1: Types of Formulas in Excel:
A2: 1) Number formulas that deliver a single number answers such as a tax deduction amount or a budgetary expense amount.
A3: 2) Text formulas deliver a text item such as a name or category.
A4: 3) Logical formulas (Boolean Formulas) deliver a TRUE or FALSE.
A5: 4) Lookup formulas lookup a particular item in a table and return an item such as a phone number or tax rate.
A6: 5) Aggregate formulas are formulas that take two or more items and calculate a single answer.
A7: 6) Array formulas are formulas that operate on an array of items rather than single items (“array operation”) and which deliver an array of items as a result of the array operation.
A9: The types of Formula Elements that are allowed in formulas are:
A10: 1) Equal sign.
A11: 2) Cell references (also defined names, sheet references, workbook references.
A12: 3) Table Formula Nomenclature (Structured References).
A13: 4) Math operators ==> | K13: Math Operators.
A14: 5) Numbers (if they won’t change) | K14: + | L14: Adding. | M14: Remember Order of Operations in Math:
A15: 6) Built-in Functions. | K15: - | L15: Subtracting or Negation. | M15: 1) Parentheses
A16: 7) Function argument elements, such as FALSE or 0 in VLOOKUP function to indicate Exact Match. | K16: * | L16: Multiplying. | M16: 2) Exponents
A17: 8) Comparative operators ==> | K17: / | L17: Dividing. | M17: 3) Multiply & Divide, Left to Right
A18: 9) Join operator: Ampersand (&). | K18: ^ | L18: Raising to an exponent. | M18: 4) Adding and Subtracting, Left to Right
A19: 10) Text within quotation marks. | K19: ( ) | L19: Parentheses.
A20: 11) Array constants.
K21: Comparative Operators.
K22: = | L22: Equal: are two things equal?
K23: <> | L23: Not: are two things not equal? Type less than symbol, then greater than symbol.
K24: > | L24: Greater than: is the thing on the left greater than the thing on the right?
K25: >= | L25: Greater than or equal to: is the thing on the left greater than or equal to the thing on the right?
K26: < | L26: Less than: is the thing on the left less than the thing on the right?
K27: <= | L27: Less than or equal to: is the thing on the left less than or equal to the thing on the right?
K29: How Formulas Calculate: Order of Precedence in Excel.
K30: 1 | L30: Parenthesis ( )
K31: 2 | L31: Reference Operators: colon, space, comma
L32: Example of colon in range of cells: =SUM(A1:A4)
L33: Example of intersection operator: =E12:G12 F10:F15 (retrieve what is in F12)
L34: Example of comma (union): =SUM(E10:G10,E14:G14)
K35: 3 | L35: Negation (-)
L36: Example: = -2^4 = 16
L37: Example: = -(2^4) = -16
L38: Example: --2+1 = 3
K39: 4 | L39: Converts % (1% to .01)
K40: 5 | L40: Exponents (^)
L41: Example: 4^(1/2) = 2
L42: Example: 3^2 = 9
K43: 6 | L43: Multiplication (*) and Division (/), left to right
K44: 7 | L44: Adding (+) and Subtracting (-), left to right
K45: 8 | L45: Ampersand (&)
K46: 9 | L46: Comparative symbols: =, <>, >=, <=, <, >

Sheet Golden Rule
A1: Excel’s Golden Rule:
A2: 1) If a formula input can change, put it into a cell and refer to it in the formula with a cell reference.
A3: 2) If a formula input will not change, you can type it into a formula.
A4: 3) ALWAYS Label Your Formula Inputs!!!
A6: Goal: Calculate the Deduction at the 7.65% Tax Rate
A8: Efficient: | F8: Why?
A9: Gross | B9: Deduction | D9: Tax Rate | F9: 1) It provides good documentation of the spreadsheet solution or spreadsheet model:
A10: 1589.75 | B10: =ROUND(A10*D10,2) -> 121.62 | D10: 0.0765 | F10: 2) Easy to Update the spreadsheet solution or spreadsheet model
F11: 3) Violating Excel’s Golden Rule by “Hard Coding” leads to errors:
A12: NO: | F12: Research has shown that a common error in spreadsheets is “Hard Coding”:
A13: Not Efficient: | F13: http://www.strategy-at-risk.com/2009/03/03/the-risk-of-spreadsheet-errors/
A14: Gross | B14: Deduction
A15: 1589.75 | B15: =ROUND(A15*0.0765,2) -> 121.62

Sheet Formula Examples
A1: Ex 1 | B1: Goal: Calculate Monthly Allocation.
B2: Type of Formula: Number Formula.
B3: Formula Elements: Equal sign, cell reference,
B4: math operator, number.
B6: Annual Insurance | C6: 13500
B7: Monthly Allocation
A9: Ex 2 | B9: Goal: Calculate deduction for each employee.
B10: Type of Formula: Number Formula.
B11: Formula Elements: Equal sign, cell reference,
B14: Employee | C14: Gross Pay | D14: Deduction | F14: TaxRate
B15: Sioux | C15: 2830.34 | F15: 0.14
B16: Chin | C16: 2239.93
B17: Tyrone | C17: 2953.98
B18: Gigi | C18: 2926.74
B20: Goal: Calculate dynamic label for counting above the hurdle.
B21: Type of Formula: Text Formula.
A22: Ex 3 | B22: Formula Elements: Equal sign, Text in Double Quotes, Join Symbol (&), Cell Reference
A23: Ex 4 | B23: Formula Elements: Equal sign, Text in Double Quotes, Join Symbol (&), Cell Reference, Built-in Function DOLLAR
B25: Goal: Calculate number of sales above hurdle.
B26: Type of Formula: Number Formula.
A27: Ex 5 | B27: Formula Elements: Equal sign, Built-in Function, Table Formula Nomenclature (Structured References), Cell Reference.
A28: Ex 6 | B28: Formula Elements: Equal sign, Built-in Function, Table Formula Nomenclature, Comparative Operator in Double Quotes, Join Symbol (Ampersand), Cell Reference.
B30: Product | C30: Sales | E30: Hurdle for Counting | F30: >=1000
B31: Carlota | C31: 1144 | H31: **This is also an Aggregate Calculation made with a single criterion or condition.
B32: Carlota | C32: 338 | E32: Ex 3 | F32: Ex 5
B33: Quad | C33: 1033
B34: Quad | C34: 832 | E34: Hurdle for Counting | F34: 1000 | H34: **When you join Comparative
B35: Tri Fly | C35: 1041 | H35: Operator to Cell Reference, you
B36: Quad | C36: 955 | E36: Ex 4 | F36: Ex 6 | H36: must put Comparative Operator
B37: Tri Fly | C37: 587 | H37: in Double Quotes.
B38: Quad | C38: 1190
B39: Tri Fly | C39: 945
B40: Quad | C40: 973
B41: Tri Fly | C41: 225
A45: Ex 7 | B45: Goal: Lookup Category to specify the type of sale it is: Below Par, Par, Excellent.
B46: Type of Formula: Lookup Formula. Text Formula.
B47: Formula Elements: Equal sign, Built-in Function, Cell Reference, Array Constant,
B48: Function argument elements.
B50: Sales Rep | C50: Sales | D50: Category | F50: Sales | G50: Category | I50: VLOOKUP function:
B51: Sioux | C51: 2935.52 | F51: 0 | G51: Below Par | I51: 1) Looks at an item
B52: Tyrone | C52: 6825.01 | F52: 3000 | G52: Par | I52: 2) Tries to find a match in the first column of the lookup table
B53: Chin | C53: 5404.56 | F53: 6000 | G53: Excellent | I53: Exact Match: tries to find exact match
B54: Gigi | C54: 2470.35 | I54: Approximate Match: bumps into first biggest item and jumps back one row
B55: Sioux | C55: 5246.69 | I55: 3) retrieves something from a specified column
B56: Tyrone | C56: 6768.17 | I56: 4) brings it back the cell.
B57: Gigi | C57: 6664.08
B58: Tyrone | C58: 3513.37 | I58: VLOOKUP: =VLOOKUP( lookup_value , table_array , col_index_num , [range_lookup] )
B59: Gigi | C59: 4879.75 | I59: lookup_value = thing you look at BEFORE you go over to the table.
B60: Chin | C60: 2525.66 | I60: table_array = vertical table = VLOOKUP table
I61: col_index_num = which column in the table has the thing you want to go and get and bring back to the cell.
I62: [range_lookup] = Exact Match = FALSE or 0. Approximate Match = TRUE or 1 or omitted.
A63: Ex 8 | B63: Goal: Determine bonus amount for each employee.
B64: Type of Formula: Number Formula.
B65: Formula Elements: Equal Sign, Built-in Function, Relative Cell Reference, Comparative Operator,
B66: Absolute Cell Reference, Number typed into formula.
B68: Sales Rep | C68: Sales | D68: Bonus | F68: Hurdle: | G68: 3500 | I68: IF function:
B69: Sioux | C69: 2935.52 | F69: Bonus: | G69: 75 | I69: Use IF function to put one of two things into a cell or formulas.
B70: Tyrone | C70: 6825.01 | I70: logical_test argument gets the Logical Formula that comes out to be TRUE or FALSE.
B71: Chin | C71: 5404.56 | I71: value_if_true argument is what will go in cell if Logical Formula gets a TRUE.
B72: Gigi | C72: 2470.35 | I72: value_if_false argument is what will go in cell if Logical Formula gets a FALSE.
B73: SheliaDawn | C73: 3500
A75: Ex 9 | B75: Goal: Determine If Debits = Credits
B76: Type of Formula: Logical Formula.
B77: Formula Elements: Equal sign, Cell Reference,
B78: Equal sign (as Comparative Operator), Cell Reference
B80: Debit (DR) | C80: Credit (CR) | E80: In Balance?
B81: 35.74 | C81: 35.74
B82: 73.61 | C82: 73.61
B83: 113.08 | C83: 113.08
B84: 100.49 | C84: 100.5
B85: 17.7 | C85: 17.7
B86: 107.38 | C86: 107.38
B87: =SUM(B81:B86) -> 448 | C87: 448.01
A90: Ex 10 | B90: Goal: Add Calls. | F90: Aggregate Calculations:
B91: Type of Formula: Aggregate Formula. Number Formula. | F91: Calculations that take two or more items and
B92: Formula Elements: Equal sign, Built-in Function, Range of Cells. | F92: calculate a single answer such as adding a column of numbers
B94: Day | C94: Calls Made | E94: Total Calls
B95: Monday | C95: 60
B96: Tuesday | C96: 30
B97: Wednesday | C97: 25
B98: Thursday | C98: 35
B99: Friday | C99: 40
A102: Ex 11 | B102: Goal: Add Top 3 Bowling Scores For Bowling Tournament. | F102: Array Calculations:
B103: Type of Formula: Array Formula. Number Formula. | F103: Calculations that operate on an array of items rather than single items
B104: Formula Elements: Equal sign, Built-in Function (Nested Functions), | F104: and which deliver an array of answers called a "resultant array".
B105: Range of Cells, Array Constant with causes LARGE to deliver 3 numbers.
C107: Add Top 3 | D107: Add Top 3 | E107: Add Top 3 | F107: Add Top 3
B110: Tournament | C110: Scores for Tom | D110: Scores for Debbie | E110: Scores for SheliaDawn | F110: Scores for Chin
B111: Oakland | C111: 219 | D111: 243 | E111: 163 | F111: 156
B112: SF | C112: 235 | D112: 268 | E112: 209 | F112: 285
B113: Fremont | C113: 207 | D113: 238 | E113: 174 | F113: 292
B114: San Jose | C114: 183 | D114: 236 | E114: 195 | F114: 276
B115: El Cerrito | C115: 278 | D115: 194 | E115: 284 | F115: 230
B116: Berkeley | C116: 160 | D116: 195 | E116: 296 | F116: 257
B117: Concord | C117: 268 | D117: 173 | E117: 207 | F117: 249
B118: Vallejo | C118: 245 | D118: 221 | E118: 179 | F118: 223
B119: Hayward | C119: 233 | D119: 168 | E119: 299 | F119: 213
A122: Ex 12 | B122: How Formulas Calculate: Order of Precedence in Excel.
B123: 1 | C123: Parenthesis ( ) | G123: Example:
B124: 2 | C124: Reference Operators: colon, space, comma | G124: =2>=8^(1/3) -> TRUE | I124: =" "&_xlfn.FORMULATEXT(G124) -> =2>=8^(1/3)
C125: Example of colon in range of cells: =SUM(A1:A4)
C126: Example of intersection operator: =E12:G12 F10:F15 (retrieve what is in F12)
C127: Example of comma (union): =SUM(E10:G10,E14:G14)
B128: 3 | C128: Negation (-)
C129: Example: = -2^4 = 16
C130: Example: = -(2^4) = -16
C131: Example: --2+1 = 3
B132: 4 | C132: Converts % (1% to .01)
B133: 5 | C133: Exponents (^)
C134: Example: 4^(1/2) = 2
C135: Example: 3^2 = 9
B136: 6 | C136: Multiplication (*) and Division (/), left to right
B137: 7 | C137: Adding (+) and Subtracting (-), left to right
B138: 8 | C138: Ampersand (&)
B139: 9 | C139: Comparative symbols: =, <>, >=, <=, <, >
A141: Ex 13 | B141: Steps to Find Error in formula:
B142: 1) Look at Formula, Look at Range Finder
B143: 2) Evaluate Formula
B144: 3) Are Formula Inputs Correct?
B145: 4) Is Raw Data Correct?
B147: F2 Key = puts formula in Edit Mode and shows the rainbow colored Range Finder
B148: F9 Key = To evaluate just a single part of formula while you are in edit mode, highlight part of formula and hit the F9 key. Undo the evaluation with Ctrl + Z.
B150: Product | D150: Product | E150: Count
B151: Carlota | D151: Carlota | E151: =COUNTIFS($B$151:$B$154,D151) -> 1
B152: Carlota | D152: Quad | E152: =COUNTIFS($B$151:$B$154,D152) -> 1
B153: Quad | D153: Tri Fly | E153: 0
B154: Quad
B155: Tri Fly
A158: Ex 14 | B158: When you MUST use ROUND Function go get correct answer:
B159: 1) You are required to round, like with money. | E159: Tax Rate
B160: 2) You will use the formula result in subsequent calculations. | E160: 0.0145
B162: Sales Rep | C162: Sales | D162: Deductions | F162: Second Argumnet of ROUND:
B163: Sioux | C163: 2935.52 | D163: =C163*$E$160 -> 42.56504 | F163: Round to penny (hundredths position) use 2
B164: Tyrone | C164: 6825.01 | D164: =C164*$E$160 -> 98.962645 | F164: Round to dollar (ones position) use 0
B165: Chin | C165: 5404.56 | D165: 78.36612 | F165: Round to thousands (thousands position) use -3
B166: Gigi | C166: 2470.35 | D166: 35.820075
D167: =SUM(D163:D166) -> 255.71388
B168: Deductions
B169: 42.57 | D169: Remember: Formulas calculate on the underlying numbers, not Number Formatting
B170: 98.96
B171: 78.37
B172: 35.82
B173: =SUM(B169:B172) -> 255.72
A176: Ex 15 | B176: 3 ways to enter cell references into formulas:
B177: 1) Type. Be careful, though, errors may occur.
B178: 2) Mouse: Great for when cell reference is far away.
B179: 3) Arrow keys: great for when cell references are close.
B180: As long as "Dancing Ants" are dancing, the arrow keys will keep moving the cell reference.
B181: Lower left corner of Status Bar shows the "Formula Editing Mode"
B182: Ready = cell is selected.
B183: Enter = Arrow keys will work to put cell references in formulas.
B184: Point = Arrows keys are working to get cell reference and "Dancing Ants" are dancing.
B185: Edit = Arrow keys will move through formula characters. To get into this mode click I-beam cursor in formula.
B186: You can toggle between these modes with the F2 key.
B188: Names | C188: Gross Pay | D188: =D196 -> Deduction 1 | E188: =E196 -> Deduction 2 | F188: Total Deductions | G188: Net Pay
B189: Sioux Chin | C189: 3500 | D189: =ROUND($C189*D$197,2) -> 217 | E189: =ROUND($C189*E$197,2) -> 50.75 | F189: =SUM(D189:E189) -> 267.75
B190: Isaac Viet | C190: 3784.32 | D190: =ROUND($C190*D$197,2) -> 234.63 | E190: =ROUND($C190*E$197,2) -> 54.87 | F190: =SUM(D190:E190) -> 289.5
B191: Dennis Ho | C191: 8565.51 | D191: 531.06 | E191: =ROUND($C191*E$197,2) -> 124.2 | F191: =SUM(D191:E191) -> 655.26
B192: Hien Luong Pham | C192: 2627.99 | D192: 162.94 | E192: =ROUND($C192*E$197,2) -> 38.11 | F192: =SUM(D192:E192) -> 201.05
B193: Tom Carolan | C193: 9069.66 | D193: 562.32 | E193: =ROUND($C193*E$197,2) -> 131.51 | F193: =SUM(D193:E193) -> 693.83
D195: Assumptions
D196: Deduction 1 | E196: Deduction 2
D197: 0.062 | E197: 0.0145

Sheet Formula Examples (an)
A1: Ex 1 | B1: Goal: Calculate Monthly Allocation.
B2: Type of Formula: Number Formula.
B3: Formula Elements: Equal sign, cell reference,
B4: math operator, number.
B6: Annual Insurance | C6: 13500
B7: Monthly Allocation | C7: =C6/12 -> 1125
A9: Ex 2 | B9: Goal: Calculate deduction for each employee.
B10: Type of Formula: Number Formula.
B11: Formula Elements: Equal sign, cell reference,
B14: Employee | C14: Gross Pay | D14: Deduction | F14: TaxRate
B15: Sioux | C15: 2830.34 | D15: =C15*$F$15 -> 396.2476 | F15: 0.14
B16: Chin | C16: 2239.93 | D16: =C16*$F$15 -> 313.5902
B17: Tyrone | C17: 2953.98 | D17: 413.5572
B18: Gigi | C18: 2926.74 | D18: =C18*$F$15 -> 409.7436
B20: Goal: Calculate dynamic label for counting above the hurdle.
B21: Type of Formula: Text Formula.
A22: Ex 3 | B22: Formula Elements: Equal sign, Text in Double Quotes, Join Symbol (&), Cell Reference
A23: Ex 4 | B23: Formula Elements: Equal sign, Text in Double Quotes, Join Symbol (&), Cell Reference, Built-in Function DOLLAR
B25: Goal: Calculate number of sales above hurdle.
B26: Type of Formula: Number Formula.
A27: Ex 5 | B27: Formula Elements: Equal sign, Built-in Function, Table Formula Nomenclature (Structured References), Cell Reference.
A28: Ex 6 | B28: Formula Elements: Equal sign, Built-in Function, Table Formula Nomenclature, Comparative Operator in Double Quotes, Join Symbol (Ampersand), Cell Reference.
B30: Product | C30: Sales | E30: Hurdle for Counting | F30: >=1000
B31: Carlota | C31: 1144 | E31: ="Count "&F30 -> Count >=1000 | F31: =COUNTIFS(AnswerProductSales[Sales],F30) -> 4
B32: Carlota | C32: 338 | E32: Ex 3 | F32: Ex 4
B33: Quad | C33: 1033
B34: Quad | C34: 832 | E34: Hurdle for Counting | F34: 750 | H34: **When you join Comparative
B35: Tri Fly | C35: 1041 | E35: ="Count >= "&DOLLAR(F34) -> Count >= $750.00 | F35: =COUNTIFS(AnswerProductSales[Sales],">="&F34) -> 8 | H35: Operator to Cell Reference, you
B36: Quad | C36: 955 | E36: Ex 5 | F36: Ex 6 | H36: must put Comparative Operator
B37: Tri Fly | C37: 587 | H37: in Double Quotes.
B38: Quad | C38: 1190
B39: Tri Fly | C39: 945
B40: Quad | C40: 973
B41: Tri Fly | C41: 225
A45: Ex 7 | B45: Goal: Lookup Category to specify the type of sale it is: Below Par, Par, Excellent.
B46: Type of Formula: Lookup Formula. Text Formula.
B47: Formula Elements: Equal sign, Built-in Function, Cell Reference, Array Constant,
B48: Function argument elements.
B50: Sales Rep | C50: Sales | D50: Category | F50: Sales | G50: Category | I50: VLOOKUP function:
B51: Sioux | C51: 2935.52 | D51: =VLOOKUP(C51,{0,"Below Par";3000,"Par";6000,"Excellent"},2) -> Below Par | F51: 0 | G51: Below Par | I51: 1) Looks at an item
B52: Tyrone | C52: 6825.01 | D52: =VLOOKUP(C52,{0,"Below Par";3000,"Par";6000,"Excellent"},2) -> Excellent | F52: 3000 | G52: Par | I52: 2) Tries to find a match in the first column of the lookup table
B53: Chin | C53: 5404.56 | D53: =VLOOKUP(C53,{0,"Below Par";3000,"Par";6000,"Excellent"},2) -> Par | F53: 6000 | G53: Excellent | I53: Exact Match: tries to find exact match
B54: Gigi | C54: 2470.35 | D54: =VLOOKUP(C54,{0,"Below Par";3000,"Par";6000,"Excellent"},2) -> Below Par | I54: Approximate Match: bumps into first biggest item and jumps back one row
B55: Sioux | C55: 5246.69 | D55: =VLOOKUP(C55,{0,"Below Par";3000,"Par";6000,"Excellent"},2) -> Par | I55: 3) retrieves something from a specified column
B56: Tyrone | C56: 6768.17 | D56: =VLOOKUP(C56,{0,"Below Par";3000,"Par";6000,"Excellent"},2) -> Excellent | I56: 4) brings it back the cell.
B57: Gigi | C57: 6664.08 | D57: =VLOOKUP(C57,{0,"Below Par";3000,"Par";6000,"Excellent"},2) -> Excellent
B58: Tyrone | C58: 3513.37 | D58: =VLOOKUP(C58,{0,"Below Par";3000,"Par";6000,"Excellent"},2) -> Par | I58: VLOOKUP: =VLOOKUP( lookup_value , table_array , col_index_num , [range_lookup] )
B59: Gigi | C59: 4879.75 | D59: =VLOOKUP(C59,{0,"Below Par";3000,"Par";6000,"Excellent"},2) -> Par | I59: lookup_value = thing you look at BEFORE you go over to the table.
B60: Chin | C60: 2525.66 | D60: =VLOOKUP(C60,{0,"Below Par";3000,"Par";6000,"Excellent"},2) -> Below Par | I60: table_array = vertical table = VLOOKUP table
I61: col_index_num = which column in the table has the thing you want to go and get and bring back to the cell.
I62: [range_lookup] = Exact Match = FALSE or 0. Approximate Match = TRUE or 1 or omitted.
A63: Ex 8 | B63: Goal: Determine bonus amount for each employee.
B64: Type of Formula: Number Formula.
B65: Formula Elements: Equal Sign, Relative Cell Reference, Comparative Operator,
B66: Absolute Cell Reference, Number typed into formula.
B68: Sales Rep | C68: Sales | D68: Bonus | F68: Hurdle: | G68: 3500 | I68: IF function:
B69: Sioux | C69: 2935.52 | D69: =IF(C69>=$G$68,$G$69,0) -> 0 | F69: Bonus: | G69: 75 | I69: Use IF function to put one of two things into a cell or formulas.
B70: Tyrone | C70: 6825.01 | D70: =IF(C70>=$G$68,$G$69,0) -> 75 | I70: logical_test argument gets the Logical Formula that comes out to be TRUE or FALSE.
B71: Chin | C71: 5404.56 | D71: 75 | I71: value_if_true argument is what will go in cell if Logical Formula gets a TRUE.
B72: Gigi | C72: 2470.35 | D72: 0 | I72: value_if_false argument is what will go in cell if Logical Formula gets a FALSE.
B73: SheliaDawn | C73: 3500 | D73: =IF(C73>=$G$68,$G$69,0) -> 75
A75: Ex 9 | B75: Goal: Determine If Debits = Credits
B76: Type of Formula: Logical Formula.
B77: Formula Elements: Equal sign, Cell Reference,
B78: Equal sign (as Comparative Operator), Cell Reference
B80: Debit (DR) | C80: Credit (CR) | E80: In Balance?
B81: 35.74 | C81: 35.74 | E81: =B87=C87 -> FALSE
B82: 73.61 | C82: 73.61
B83: 113.08 | C83: 113.08
B84: 100.49 | C84: 100.5
B85: 17.7 | C85: 17.7
B86: 107.38 | C86: 107.38
B87: =SUM(B81:B86) -> 448 | C87: 448.01
A90: Ex 10 | B90: Goal: Add Calls. | F90: Aggregate Calculations:
B91: Type of Formula: Aggregate Formula. Number Formula. | F91: Calculations that take two or more items and
B92: Formula Elements: Equal sign, Built-in Function, Range of Cells. | F92: calculate a single answer such as adding a column of numbers
B94: Day | C94: Calls Made | E94: Total Calls
B95: Monday | C95: 60 | E95: =SUM(C95:C99) -> 190
B96: Tuesday | C96: 30
B97: Wednesday | C97: 25
B98: Thursday | C98: 35
B99: Friday | C99: 40
A102: Ex 11 | B102: Goal: Add Top 3 Bowling Scores For Bowling Tournament. | F102: Array Calculations:
B103: Type of Formula: Array Formula. Number Formula. | F103: Calculations that operate on an array of items rather than single items
B104: Formula Elements: Equal sign, Built-in Function (Nested Functions), | F104: and which deliver an array of answers called a "resultant array".
B105: Range of Cells, Array Constant with causes LARGE to deliver 3 numbers.
C107: Add Top 3 | D107: Add Top 3 | E107: Add Top 3 | F107: Add Top 3
C108: =SUM(LARGE(C111:C119,{1,2,3})) -> 791 | D108: =SUM(LARGE(D111:D119,{1,2,3})) -> 749 | E108: =SUM(LARGE(E111:E119,{1,2,3})) -> 879 | F108: =SUM(LARGE(F111:F119,{1,2,3})) -> 853
B110: Tournament | C110: Scores for Tom | D110: Scores for Debbie | E110: Scores for SheliaDawn | F110: Scores for Chin
B111: Oakland | C111: 219 | D111: 243 | E111: 163 | F111: 156
B112: SF | C112: 235 | D112: 268 | E112: 209 | F112: 285
B113: Fremont | C113: 207 | D113: 238 | E113: 174 | F113: 292
B114: San Jose | C114: 183 | D114: 236 | E114: 195 | F114: 276
B115: El Cerrito | C115: 278 | D115: 194 | E115: 284 | F115: 230
B116: Berkeley | C116: 160 | D116: 195 | E116: 296 | F116: 257
B117: Concord | C117: 268 | D117: 173 | E117: 207 | F117: 249
B118: Vallejo | C118: 245 | D118: 221 | E118: 179 | F118: 223
B119: Hayward | C119: 233 | D119: 168 | E119: 299 | F119: 213
A122: Ex 12 | B122: How Formulas Calculate: Order of Precedence in Excel.
B123: 1 | C123: Parenthesis ( ) | G123: Example:
B124: 2 | C124: Reference Operators: colon, space, comma | G124: =2>=8^(1/3) -> TRUE | I124: =" "&_xlfn.FORMULATEXT(G124) -> =2>=8^(1/3)
C125: Example of colon in range of cells: =SUM(A1:A4)
C126: Example of intersection operator: =E12:G12 F10:F15 (retrieve what is in F12)
C127: Example of comma (union): =SUM(E10:G10,E14:G14)
B128: 3 | C128: Negation (-)
C129: Example: = -2^4 = 16
C130: Example: = -(2^4) = -16
C131: Example: --2+1 = 3
B132: 4 | C132: Converts % (1% to .01)
B133: 5 | C133: Exponents (^)
C134: Example: 4^(1/2) = 2
C135: Example: 3^2 = 9
B136: 6 | C136: Multiplication (*) and Division (/), left to right
B137: 7 | C137: Adding (+) and Subtracting (-), left to right
B138: 8 | C138: Ampersand (&)
B139: 9 | C139: Comparative symbols: =, <>, >=, <=, <, >
A141: Ex 13 | B141: Steps to Find Error in formula:
B142: 1) Look at Formula, Look at Range Finder
B143: 2) Evaluate Formula
B144: 3) Are Formula Inputs Correct?
B145: 4) Is Raw Data Correct?
B147: F2 Key = puts formula in Edit Mode and shows the rainbow colored Range Finder
B148: F9 Key = To evaluate just a single part of formula while you are in edit mode, highlight part of formula and hit the F9 key. Undo the evaluation with Ctrl + Z.
B150: Product | D150: Product | E150: Count
B151: Carlota | D151: Carlota | E151: =COUNTIFS($B$151:$B$155,D151) -> 2
B152: Carlota | D152: Quad | E152: =COUNTIFS($B$151:$B$155,D152) -> 2
B153: Quad | D153: Tri Fly | E153: 1
B154: Quad
B155: Tri Fly
A158: Ex 14 | B158: When you MUST use ROUND Function go get correct answer:
B159: 1) You are required to round, like with money. | E159: Tax Rate
B160: 2) You will use the formula result in subsequent calculations. | E160: 0.0145
B162: Sales Rep | C162: Sales | D162: Deductions | F162: Second Argumnet of ROUND:
B163: Sioux | C163: 2935.52 | D163: =ROUND(C163*$E$160,2) -> 42.57 | F163: Round to penny (hundredths position) use 2
B164: Tyrone | C164: 6825.01 | D164: =ROUND(C164*$E$160,2) -> 98.96 | F164: Round to dollar (ones position) use 0
B165: Chin | C165: 5404.56 | D165: 78.37 | F165: Round to thousands (thousands position) use -3
B166: Gigi | C166: 2470.35 | D166: 35.82
D167: =SUM(D163:D166) -> 255.72
B168: Deductions
B169: 42.57 | D169: Remember: Formulas calculate on the underlying numbers, not Number Formatting
B170: 98.96
B171: 78.37
B172: 35.82
B173: =SUM(B169:B172) -> 255.72
A176: Ex 15 | B176: 3 ways to enter cell references into formulas:
B177: 1) Type. Be careful, though, errors may occur.
B178: 2) Mouse: Great for when cell reference is far away.
B179: 3) Arrow keys: great for when cell references are close.
B180: As long as "Dancing Ants" are dancing, the arrow keys will keep moving the cell reference.
B181: Lower left corner of Status Bar shows the "Formula Editing Mode"
B182: Ready = cell is selected.
B183: Enter = Arrow keys will work to put cell references in formulas.
B184: Point = Arrows keys are working to get cell reference and "Dancing Ants" are dancing.
B185: Edit = Arrow keys will move through formula characters. To get into this mode click I-beam cursor in formula.
B186: You can toggle between these modes with the F2 key.
B188: Names | C188: Gross Pay | D188: =D196 -> Deduction 1 | E188: =E196 -> Deduction 2 | F188: Total Deductions | G188: Net Pay
B189: Sioux Chin | C189: 3500 | D189: =ROUND($C189*D$197,2) -> 217 | E189: =ROUND($C189*E$197,2) -> 50.75 | F189: =SUM(D189:E189) -> 267.75 | G189: =C189-F189 -> 3232.25
B190: Isaac Viet | C190: 3784.32 | D190: =ROUND($C190*D$197,2) -> 234.63 | E190: =ROUND($C190*E$197,2) -> 54.87 | F190: =SUM(D190:E190) -> 289.5 | G190: =C190-F190 -> 3494.82
B191: Dennis Ho | C191: 8565.51 | D191: 531.06 | E191: =ROUND($C191*E$197,2) -> 124.2 | F191: =SUM(D191:E191) -> 655.26 | G191: 7910.25
B192: Hien Luong Pham | C192: 2627.99 | D192: 162.94 | E192: =ROUND($C192*E$197,2) -> 38.11 | F192: =SUM(D192:E192) -> 201.05 | G192: 2426.94
B193: Tom Carolan | C193: 9069.66 | D193: 562.32 | E193: =ROUND($C193*E$197,2) -> 131.51 | F193: =SUM(D193:E193) -> 693.83 | G193: 8375.83
D195: Assumptions
D196: Deduction 1 | E196: Deduction 2
D197: 0.062 | E197: 0.0145

Sheet Errors
K1: 15
A2: Error Message | B2: What it means | C2: Example | G2: Jan | H2: Feb | I2: Mar
B3: Divide by zero | C3: =100/0 ->  | D3: =100/INDEX(G3:I7,MATCH("P3",F3:F7,0),MATCH("Mar",G2:I2,0)) ->  | F3: P1 | G3: 103 | H3: 62 | I3: 80
B4: Formula is using cell reference that has been deleted, or other invalid cell reference | C4: =#REF! ->  | D4: =K1 -> 15 | F4: P2 | G4: 118 | H4: 93 | I4: 75
B5: Excel built-in function misspelled, Defined Name misspelled, or "text" (word data) in formula is not in double quotes. | C5: =AVERAGGE(G3:G7) ->  | D5: =Jan &G3 ->  | F5: P3 | G5: 111 | H5: 102
B6: Not Available, like when VLOOKUP cam't find a match. | C6: =VLOOKUP("P7",F3:I7,2,0) ->  | D6: =MATCH("P1 ",F3:F7,0) ->  | F6: P4 | G6: 34 | H6: 57 | I6: 35
B7: Invalid operator or argumnet (like ="Red"*12 or =VLOOKUP(12,"Red",2,0), or Array Formula was entered without Ctrl + Shift + Enter | C7: ="Red"^2 ->  | D7: =VLOOKUP(12,"Red",2,0) ->  | F7: P5 | G7: 51 | H7: 88 | I7: 65
B8: No Intersection for Space Operator Lookup | C8: =G5:I5 H3:H7 -> 102 | D8: =G3:G7 I3:I7 -> 
B9: Number is too big or small (number must be between -1*10^307 and 1*10^307), or invalid numeric values in a formula or function, or an iterative function like IRR cannot find an answer. | C9: =9E+99^3000 ->  | D9: =-9E+99^3000 ->  | F9: End Time | G9: Begin Time | I9: Jan
A10: ####### | B10: Column width not wide enough to display data (values), or negative date or time | C10: =100000000 -> 100000000 | D10: =G10-F10 -> -0.125 | F10: 21:00:00 | G10: 18:00:00 | I10: 3
A11: Circular Cell Reference | B11: Formula contains the cell reference that the formula sits in, Like if SUM(A1:A3) was in cell A1 or the formula M147 that is in the cell M147. The formula doesn't know what to do because it is looking at itself. | C11: =C11 | D11: =ROWS(D$11:D11) -> 1 | I11: 4
I12: 5
H13: Total | I13: =SUM(I10:I12) -> 12
C14: =#REF! ->  | D14: =A1 -> 0 | E14: =B1 -> 0

Sheet Errors (an)
K1: 15
A2: Error Message | B2: What it means | C2: Example | G2: Jan | H2: Feb | I2: Mar
B3: Divide by zero | C3: =100/0 ->  | D3: =100/INDEX(G3:I7,MATCH("P3",F3:F7,0),MATCH("Mar",G2:I2,0)) ->  | F3: P1 | G3: 103 | H3: 62 | I3: 80
B4: Formula is using cell reference that has been deleted, or other invalid cell reference | C4: =#REF! ->  | D4: =K1 -> 15 | F4: P2 | G4: 118 | H4: 93 | I4: 75
B5: Excel built-in function misspelled, Defined Name misspelled, or "text" (word data) in formula is not in double quotes. | C5: =AVERAGGE(G3:G7) ->  | D5: =Jan &G3 ->  | F5: P3 | G5: 111 | H5: 102
B6: Not Available, like when VLOOKUP cam't find a match. | C6: =VLOOKUP("P7",F3:I7,2,0) ->  | D6: =MATCH("P1 ",F3:F7,0) ->  | F6: P4 | G6: 34 | H6: 57 | I6: 35
B7: Invalid operator or argumnet (like ="Red"*12 or =VLOOKUP(12,"Red",2,0), or Array Formula was entered without Ctrl + Shift + Enter | C7: ="Red"^2 ->  | D7: =VLOOKUP(12,"Red",2,0) ->  | F7: P5 | G7: 51 | H7: 88 | I7: 65
B8: No Intersection for Space Operator Lookup | C8: =G5:I5 H3:H7 -> 102 | D8: =G3:G7 I3:I7 -> 
B9: Number is too big or small (number must be between -1*10^307 and 1*10^307), or invalid numeric values in a formula or function, or an iterative function like IRR cannot find an answer. | C9: =9E+99^3000 ->  | D9: =-9E+99^3000 ->  | F9: End Time | G9: Begin Time | I9: Jan
A10: ####### | B10: Column width not wide enough to display data (values), or negative date or time | C10: =100000000 -> 100000000 | D10: =G10-F10 -> -0.125 | F10: 21:00:00 | G10: 18:00:00 | I10: 3
A11: Circular Cell Reference | B11: Formula contains the cell reference that the formula sits in, Like if SUM(A1:A3) was in cell A1 or the formula M147 that is in the cell M147. The formula doesn't know what to do because it is looking at itself. | C11: =C11 | D11: =ROWS(D$11:D11) -> 1 | I11: 4
I12: 5
H13: Total | I13: =SUM(I10:I12) -> 12
C14: =#REF! ->  | D14: =A1 -> 0 | E14: =B1 -> 0

Sheet Homework ==>>

Sheet HW(1)
A1: 1) In cell B8 create a formula that adds the expenses (do not include the Revenue). Then copy that formula through the range B8:F8. 2) In cell B9 create a formula that calculates Net Income. Then copy that formula through the range B9:F9.
B3: Monday | C3: Tuesday | D3: Wednesday | E3: Thursday | F3: Friday
A4: Revenue | B4: 1000 | C4: =B4*(1+0.1) -> 1100 | D4: =C4*(1+0.1) -> 1210 | E4: =D4*(1+0.1) -> 1331 | F4: =E4*(1+0.1) -> 1464.1
A5: Expense 1 | B5: 291 | C5: 228 | D5: 140 | E5: 268 | F5: 217
A6: Expense 2 | B6: 200 | C6: 124 | D6: 270 | E6: 140 | F6: 164
A7: Expense 3 | B7: 235 | C7: 225 | D7: 103 | E7: 233 | F7: 257
A8: Total Expenses
A9: Net Income

Sheet HW(1an)
A1: 1) In cell B8 create a formula that adds the expenses (do not include the Revenue). Then copy that formula through the range B8:F8. 2) In cell B9 create a formula that calculates Net Income. Then copy that formula through the range B9:F9.
B3: Monday | C3: Tuesday | D3: Wednesday | E3: Thursday | F3: Friday
A4: Revenue | B4: 1000 | C4: =B4*(1+0.1) -> 1100 | D4: =C4*(1+0.1) -> 1210 | E4: =D4*(1+0.1) -> 1331 | F4: =E4*(1+0.1) -> 1464.1
A5: Expense 1 | B5: 291 | C5: 228 | D5: 140 | E5: 268 | F5: 217
A6: Expense 2 | B6: 200 | C6: 124 | D6: 270 | E6: 140 | F6: 164
A7: Expense 3 | B7: 235 | C7: 225 | D7: 103 | E7: 233 | F7: 257
A8: Total Expenses | B8: =SUM(B5:B7) -> 726 | C8: =SUM(C5:C7) -> 577 | D8: =SUM(D5:D7) -> 513 | E8: =SUM(E5:E7) -> 641 | F8: =SUM(F5:F7) -> 638
A9: Net Income | B9: =B4-B8 -> 274 | C9: =C4-C8 -> 523 | D9: =D4-D8 -> 697 | E9: =E4-E8 -> 690 | F9: =F4-F8 -> 826.1

Sheet HW(2)
A1: 1) In Cell E4 create a formula that adds the employee's calls, then copy the formula down the column.
A3: Employee | B3: Day 1 Phone Calls | C3: Day 2 Phone Calls | D3: Day 3 Phone Calls | E3: Total Calls
A4: Sioux | B4: 25 | C4: 33 | D4: 72
A5: Tom | B5: 25 | C5: 79 | D5: 94
A6: Chin | B6: 36 | C6: 48 | D6: 38
A7: Pham | B7: 91 | C7: 36 | D7: 59
A8: Shelia | B8: 54 | C8: 67 | D8: 58
A9: Mo | B9: 89 | C9: 95 | D9: 27

Sheet HW(2an)
A1: 1) In Cell E4 create a formula that adds the employee's calls, then copy the formula down the column.
A3: Employee | B3: Day 1 Phone Calls | C3: Day 2 Phone Calls | D3: Day 3 Phone Calls | E3: Total Calls
A4: Sioux | B4: 25 | C4: 33 | D4: 72 | E4: =SUM(B4:D4) -> 130
A5: Tom | B5: 25 | C5: 79 | D5: 94 | E5: 198
A6: Chin | B6: 36 | C6: 48 | D6: 38 | E6: 122
A7: Pham | B7: 91 | C7: 36 | D7: 59 | E7: 186
A8: Shelia | B8: 54 | C8: 67 | D8: 58 | E8: 179
A9: Mo | B9: 89 | C9: 95 | D9: 27 | E9: 211

Sheet HW(3)
A1: 1) In cell F4, create a formula that will add the Sales for Sioux. Make sure that you verify that the formula is working. 2) Find the problem with the formula in cell F8 and fix it.
A3: Date | B3: SalesRep | C3: Sales | E3: Names | F3: Total Sales
A4: 2010-03-18 | B4: Fred | C4: 73 | E4: Sioux
A5: 2010-03-19 | B5: Jo | C5: 121
A6: 2010-03-20 | B6: Fred | C6: 167
A7: 2010-03-21 | B7: Joe | C7: 167 | E7: Names | F7: Total Sales
A8: 2010-03-22 | B8: Sue | C8: 75 | E8: Sue | F8: =SUMIFS(C4:C30,B4:B30,E7) -> 0
A9: 2010-03-23 | B9: Fred | C9: 157
A10: 2010-03-24 | B10: Sue | C10: 61
A11: 2010-03-25 | B11: Fred | C11: 108
A12: 2010-03-26 | B12: Jo | C12: 139
A13: 2010-03-27 | B13: Sioux | C13: 130
A14: 2010-03-28 | B14: Sue | C14: 66
A15: 2010-03-29 | B15: Sioux | C15: 86
A16: 2010-03-30 | B16: Joe | C16: 122
A17: 2010-03-31 | B17: Sioux | C17: 50
A18: 2010-04-01 | B18: Sue | C18: 77
A19: 2010-04-02 | B19: Fred | C19: 140
A20: 2010-04-03 | B20: Sue | C20: 107
A21: 2010-04-04 | B21: Sioux | C21: 109
A22: 2010-04-05 | B22: Joe | C22: 121
A23: 2010-04-06 | B23: Fred | C23: 78
A24: 2010-04-07 | B24: Sioux | C24: 168
A25: 2010-04-08 | B25: Jo | C25: 88
A26: 2010-04-09 | B26: Chin | C26: 110
A27: 2010-04-10 | B27: Chin | C27: 132
A28: 2010-04-11 | B28: Jo | C28: 54
A29: 2010-04-12 | B29: Fred | C29: 58
A30: 2010-04-13 | B30: Sue | C30: 71

Sheet HW(3an)
A1: 1) In cell F4, create a formula that will add the Sales for Sioux. Make sure that you verify that the formula is working. 2) Find the problem with the formula in cell F8 and fix it.
A3: Date | B3: SalesRep | C3: Sales | E3: Names | F3: Total Sales
A4: 2010-03-18 | B4: Fred | C4: 73 | E4: Sioux | F4: =SUMIFS(C4:C30,B4:B30,E4) -> 543
A5: 2010-03-19 | B5: Jo | C5: 121
A6: 2010-03-20 | B6: Fred | C6: 167
A7: 2010-03-21 | B7: Joe | C7: 167 | E7: Names | F7: Total Sales
A8: 2010-03-22 | B8: Sue | C8: 75 | E8: Sue | F8: =SUMIFS(C4:C30,B4:B30,E8) -> 457
A9: 2010-03-23 | B9: Fred | C9: 157
A10: 2010-03-24 | B10: Sue | C10: 61
A11: 2010-03-25 | B11: Fred | C11: 108
A12: 2010-03-26 | B12: Jo | C12: 139
A13: 2010-03-27 | B13: Sioux | C13: 130
A14: 2010-03-28 | B14: Sue | C14: 66
A15: 2010-03-29 | B15: Sioux | C15: 86
A16: 2010-03-30 | B16: Joe | C16: 122
A17: 2010-03-31 | B17: Sioux | C17: 50
A18: 2010-04-01 | B18: Sue | C18: 77
A19: 2010-04-02 | B19: Fred | C19: 140
A20: 2010-04-03 | B20: Sue | C20: 107
A21: 2010-04-04 | B21: Sioux | C21: 109
A22: 2010-04-05 | B22: Joe | C22: 121
A23: 2010-04-06 | B23: Fred | C23: 78
A24: 2010-04-07 | B24: Sioux | C24: 168
A25: 2010-04-08 | B25: Jo | C25: 88
A26: 2010-04-09 | B26: Chin | C26: 110
A27: 2010-04-10 | B27: Chin | C27: 132
A28: 2010-04-11 | B28: Jo | C28: 54
A29: 2010-04-12 | B29: Fred | C29: 58
A30: 2010-04-13 | B30: Sue | C30: 71

Sheet HW(4)
A1: 1) Fix the problem with the formula in cell E4.
A3: Date | B3: SalesRep | C3: Sales | E3: Total Sales
A4: 2010-03-18 | B4: Fred | C4: 73 | E4: =SUM(C4:C29) -> 2764
A5: 2010-03-19 | B5: Jo | C5: 121
A6: 2010-03-20 | B6: Fred | C6: 167
A7: 2010-03-21 | B7: Joe | C7: 167
A8: 2010-03-22 | B8: Sue | C8: 75
A9: 2010-03-23 | B9: Fred | C9: 157
A10: 2010-03-24 | B10: Sue | C10: 61
A11: 2010-03-25 | B11: Fred | C11: 108
A12: 2010-03-26 | B12: Jo | C12: 139
A13: 2010-03-27 | B13: Sioux | C13: 130
A14: 2010-03-28 | B14: Sue | C14: 66
A15: 2010-03-29 | B15: Sioux | C15: 86
A16: 2010-03-30 | B16: Joe | C16: 122
A17: 2010-03-31 | B17: Sioux | C17: 50
A18: 2010-04-01 | B18: Sue | C18: 77
A19: 2010-04-02 | B19: Fred | C19: 140
A20: 2010-04-03 | B20: Sue | C20: 107
A21: 2010-04-04 | B21: Sioux | C21: 109
A22: 2010-04-05 | B22: Joe | C22: 121
A23: 2010-04-06 | B23: Fred | C23: 78
A24: 2010-04-07 | B24: Sioux | C24: 168
A25: 2010-04-08 | B25: Jo | C25: 88
A26: 2010-04-09 | B26: Chin | C26: 110
A27: 2010-04-10 | B27: Chin | C27: 132
A28: 2010-04-11 | B28: Jo | C28: 54
A29: 2010-04-12 | B29: Fred | C29: 58
A30: 2010-04-13 | B30: Sue | C30: 71

Sheet HW(4an)
A1: 1) Fix the problem with the formula in cell E4.
A3: Date | B3: SalesRep | C3: Sales | E3: Total Sales
A4: 2010-03-18 | B4: Fred | C4: 73 | E4: =SUM(C4:C30) -> 2835
A5: 2010-03-19 | B5: Jo | C5: 121
A6: 2010-03-20 | B6: Fred | C6: 167
A7: 2010-03-21 | B7: Joe | C7: 167
A8: 2010-03-22 | B8: Sue | C8: 75
A9: 2010-03-23 | B9: Fred | C9: 157
A10: 2010-03-24 | B10: Sue | C10: 61
A11: 2010-03-25 | B11: Fred | C11: 108
A12: 2010-03-26 | B12: Jo | C12: 139
A13: 2010-03-27 | B13: Sioux | C13: 130
A14: 2010-03-28 | B14: Sue | C14: 66
A15: 2010-03-29 | B15: Sioux | C15: 86
A16: 2010-03-30 | B16: Joe | C16: 122
A17: 2010-03-31 | B17: Sioux | C17: 50
A18: 2010-04-01 | B18: Sue | C18: 77
A19: 2010-04-02 | B19: Fred | C19: 140
A20: 2010-04-03 | B20: Sue | C20: 107
A21: 2010-04-04 | B21: Sioux | C21: 109
A22: 2010-04-05 | B22: Joe | C22: 121
A23: 2010-04-06 | B23: Fred | C23: 78
A24: 2010-04-07 | B24: Sioux | C24: 168
A25: 2010-04-08 | B25: Jo | C25: 88
A26: 2010-04-09 | B26: Chin | C26: 110
A27: 2010-04-10 | B27: Chin | C27: 132
A28: 2010-04-11 | B28: Jo | C28: 54
A29: 2010-04-12 | B29: Fred | C29: 58
A30: 2010-04-13 | B30: Sue | C30: 71

Sheet HW(5)
A1: In the yellow cells next to each of the three solutions describe what makes each solution "not efficient". Be specific and use what we learn in class to describe what is not efficient about each solution. Then create an efficient solution in the last table.
G5: Solution #1 for "Count number of sales for each compressor":
A6: Date | B6: SalesRep | C6: Sales | D6: ProductSold
A7: 2010-03-20 | B7: Fred | C7: 167 | D7: Compressor 1 | G7: ProductSold | H7: Sales
A8: 2010-03-26 | B8: Jo | C8: 139 | D8: Compressor 1 | G8: Compressor 1 | H8: =COUNTIFS($D$7:$D$33,"Compressor 1") -> 6
A9: 2010-04-06 | B9: Fred | C9: 78 | D9: Compressor 1 | G9: Compressor 2 | H9: =COUNTIFS($D$7:$D$33,"Compressor 2") -> 10
A10: 2010-04-08 | B10: Jo | C10: 88 | D10: Compressor 1 | G10: Compressor 3 | H10: =COUNTIFS($D$7:$D$33,"Compressor 3") -> 11
A11: 2010-04-12 | B11: Fred | C11: 58 | D11: Compressor 1
A12: 2010-04-13 | B12: Sue | C12: 71 | D12: Compressor 1
A13: 2010-03-21 | B13: Joe | C13: 167 | D13: Compressor 2
A14: 2010-03-25 | B14: Fred | C14: 108 | D14: Compressor 2 | G14: Solution #2 for "Count number of sales for each compressor":
A15: 2010-03-27 | B15: Sioux | C15: 130 | D15: Compressor 2
A16: 2010-03-29 | B16: Sioux | C16: 86 | D16: Compressor 2 | G16: ProductSold | H16: Sales
A17: 2010-03-31 | B17: Sioux | C17: 50 | D17: Compressor 2 | G17: Compressor 1 | H17: =COUNTIFS(D7:D33,G17) -> 6
A18: 2010-04-01 | B18: Sue | C18: 77 | D18: Compressor 2 | G18: Compressor 2 | H18: =COUNTIFS(D7:D33,G18) -> 10
A19: 2010-04-03 | B19: Sue | C19: 107 | D19: Compressor 2 | G19: Compressor 3 | H19: =COUNTIFS(D7:D33,G19) -> 11
A20: 2010-04-04 | B20: Sioux | C20: 109 | D20: Compressor 2
A21: 2010-04-05 | B21: Joe | C21: 121 | D21: Compressor 2
A22: 2010-04-10 | B22: Chin | C22: 132 | D22: Compressor 2
A23: 2010-03-18 | B23: Fred | C23: 73 | D23: Compressor 3 | G23: Solution #3 for "Count number of sales for each compressor":
A24: 2010-03-19 | B24: Jo | C24: 121 | D24: Compressor 3
A25: 2010-03-22 | B25: Sue | C25: 75 | D25: Compressor 3 | G25: ProductSold | H25: Sales
A26: 2010-03-23 | B26: Fred | C26: 157 | D26: Compressor 3 | G26: Compressor 1 | H26: =COUNTA(D7:D12) -> 6
A27: 2010-03-24 | B27: Sue | C27: 61 | D27: Compressor 3 | G27: Compressor 2 | H27: =COUNTA(D13:D22) -> 10
A28: 2010-03-28 | B28: Sue | C28: 66 | D28: Compressor 3 | G28: Compressor 3 | H28: =COUNTA(D23:D33) -> 11
A29: 2010-03-30 | B29: Joe | C29: 122 | D29: Compressor 3
A30: 2010-04-02 | B30: Fred | C30: 140 | D30: Compressor 3 | G30: Create Efficient Solution:
A31: 2010-04-07 | B31: Sioux | C31: 168 | D31: Compressor 3
A32: 2010-04-09 | B32: Chin | C32: 110 | D32: Compressor 3 | G32: ProductSold | H32: Sales
A33: 2010-04-11 | B33: Jo | C33: 54 | D33: Compressor 3 | G33: Compressor 1
G34: Compressor 2
G35: Compressor 3

Sheet HW(5an)
A1: In the yellow cells next to each of the three solutions describe what makes each solution "not efficient". Be specific and use what we learn in class to describe what is not efficient about each solution. Then create an efficient solution in the last table.
G5: Solution #1 for "Count number of sales for each compressor": | M5: The formula: =COUNTIFS($D$7:$D$33,"Compressor 1"), violates Excel's Golden Rule. By typing the criteria for counting into the formula we are being inefficient in two ways: 1) It takes longer to create the formulas because we must create each formula individually, rather than using a Relative Cell Reference and copying the formula down the column, and 2) By "hard coding" the formula input into the cell it makes it harder to change later and more prone to errors (backed up by research).
A6: Date | B6: SalesRep | C6: Sales | D6: ProductSold
A7: 2010-03-20 | B7: Fred | C7: 167 | D7: Compressor 1 | G7: ProductSold | H7: Sales
A8: 2010-03-26 | B8: Jo | C8: 139 | D8: Compressor 1 | G8: Compressor 1 | H8: =COUNTIFS($D$7:$D$33,"Compressor 1") -> 6
A9: 2010-04-06 | B9: Fred | C9: 78 | D9: Compressor 1 | G9: Compressor 2 | H9: =COUNTIFS($D$7:$D$33,"Compressor 2") -> 10
A10: 2010-04-08 | B10: Jo | C10: 88 | D10: Compressor 1 | G10: Compressor 3 | H10: =COUNTIFS($D$7:$D$33,"Compressor 3") -> 11
A11: 2010-04-12 | B11: Fred | C11: 58 | D11: Compressor 1
A12: 2010-04-13 | B12: Sue | C12: 71 | D12: Compressor 1
A13: 2010-03-21 | B13: Joe | C13: 167 | D13: Compressor 2
A14: 2010-03-25 | B14: Fred | C14: 108 | D14: Compressor 2 | G14: Solution #2 for "Count number of sales for each compressor": | M14: By not locking the range: D7:D33, the person had to create each formula individually, which wastes time in creating the formula solution. This method takes a long time to create as compared to the most efficient formula: =COUNTIFS($D$7:$D$33,G8).
A15: 2010-03-27 | B15: Sioux | C15: 130 | D15: Compressor 2
A16: 2010-03-29 | B16: Sioux | C16: 86 | D16: Compressor 2 | G16: ProductSold | H16: Sales
A17: 2010-03-31 | B17: Sioux | C17: 50 | D17: Compressor 2 | G17: Compressor 1 | H17: =COUNTIFS(D7:D33,G17) -> 6
A18: 2010-04-01 | B18: Sue | C18: 77 | D18: Compressor 2 | G18: Compressor 2 | H18: =COUNTIFS(D7:D33,G18) -> 10
A19: 2010-04-03 | B19: Sue | C19: 107 | D19: Compressor 2 | G19: Compressor 3 | H19: =COUNTIFS(D7:D33,G19) -> 11
A20: 2010-04-04 | B20: Sioux | C20: 109 | D20: Compressor 2
A21: 2010-04-05 | B21: Joe | C21: 121 | D21: Compressor 2
A22: 2010-04-10 | B22: Chin | C22: 132 | D22: Compressor 2
A23: 2010-03-18 | B23: Fred | C23: 73 | D23: Compressor 3 | G23: Solution #3 for "Count number of sales for each compressor": | M23: The formulas require that the data set be sorted. The formulas will stop working if the data set is sorted in a different way or if some of the data changes. This method takes a long time to create as compared to the most efficient formula: =COUNTIFS($D$7:$D$33,G8).
A24: 2010-03-19 | B24: Jo | C24: 121 | D24: Compressor 3
A25: 2010-03-22 | B25: Sue | C25: 75 | D25: Compressor 3 | G25: ProductSold | H25: Sales
A26: 2010-03-23 | B26: Fred | C26: 157 | D26: Compressor 3 | G26: Compressor 1 | H26: =COUNTA(D7:D12) -> 6
A27: 2010-03-24 | B27: Sue | C27: 61 | D27: Compressor 3 | G27: Compressor 2 | H27: =COUNTA(D13:D22) -> 10
A28: 2010-03-28 | B28: Sue | C28: 66 | D28: Compressor 3 | G28: Compressor 3 | H28: =COUNTA(D23:D33) -> 11
A29: 2010-03-30 | B29: Joe | C29: 122 | D29: Compressor 3
A30: 2010-04-02 | B30: Fred | C30: 140 | D30: Compressor 3 | G30: Create Efficient Solution:
A31: 2010-04-07 | B31: Sioux | C31: 168 | D31: Compressor 3
A32: 2010-04-09 | B32: Chin | C32: 110 | D32: Compressor 3 | G32: ProductSold | H32: Sales
A33: 2010-04-11 | B33: Jo | C33: 54 | D33: Compressor 3 | G33: Compressor 1 | H33: =COUNTIFS($D$7:$D$33,G33) -> 6
G34: Compressor 2 | H34: 10
G35: Compressor 3 | H35: 11

Sheet HW(6)
A1: 1) Add a formula to cell F7 that adds the Sales for Sioux. The correct answer is 336!!!
A3: Date | B3: SalesRep | C3: Sales | E3: SalesRep | F3: Sales
A4: 2010-07-09 | B4: Sue | C4: 170 | E4: Sioux
A5: 2010-08-23 | B5: Joe | C5: 170
A6: 2010-04-07 | B6: Sioux | C6: 168
A7: 2010-07-21 | B7: Sioux | C7: 168
A8: 2010-03-20 | B8: Fred | C8: 167

Sheet HW(6an)
A1: 1) Add a formula to cell F7 that adds the Sales for Sioux. The correct answer is 336!!!
A3: Date | B3: SalesRep | C3: Sales | E3: SalesRep | F3: Sales
A4: 2010-07-09 | B4: Sue | C4: 170 | E4: Sioux | F4: =SUMIFS(C4:C8,B4:B8,E4) -> 336
A5: 2010-08-23 | B5: Joe | C5: 170
A6: 2010-04-07 | B6: Sioux | C6: 168
A7: 2010-07-21 | B7: Sioux | C7: 168
A8: 2010-03-20 | B8: Fred | C8: 167

Sheet HW(7)
A1: Create a Text formula (use the IF function) that will either put the word "Net Income" or "Net Loss" in cell A5 depending on the number value in cell B5. For example, if the number in cell B5 is greater than or equal to zero, then the cell should read "Net Income", if the the number in cell B5 is less than zero, then the cell should read "Net Loss".
A3: Revenue | B3: 5000
A4: Expenses | B4: 4000
B5: =B3-B4 -> 1000

Sheet HW(7an)
A1: Create a Text formula (use the IF function) that will either put the word "Net Income" or "Net Loss" in cell A5 depending on the number value in cell B5. For example, if the number in cell B5 is greater than or equal to zero, then the cell should read "Net Income", if the the number in cell B5 is less than zero, then the cell should read "Net Loss".
A3: Revenue | B3: 5000
A4: Expenses | B4: 4000
A5: =IF(B5<0,"Net Loss","Net Income") -> Net Income | B5: =B3-B4 -> 1000

Sheet HW(8)
A1: Add a Data Validation List drop-down to cell A4. Then create a VLOOKUP formula to lookup a person's name and e-mail address.
A4: Employee ID | B4: Employee Name | C4: Email
A8: Employee ID | B8: Employee Name | C8: Phone | D8: Login | E8: Email
A9: 880-26-6416 | B9: Colby Guerra | C9: (206)-571-8485 | D9: CGuerra | E9: CGuerra@gmail.com
A10: 880-19-1649 | B10: Andre Bader | C10: (206)-687-3000 | D10: CBader | E10: CBader@gmail.com
A11: 880-32-7767 | B11: Christal Conaway | C11: (206)-727-7960 | D11: CConaway | E11: CConaway@gmail.com
A12: 880-56-9343 | B12: Ossie Givens | C12: (206)-716-7417 | D12: CGivens | E12: CGivens@yahoo.com
A13: 880-40-4308 | B13: Lashanda Maupin | C13: (206)-561-9615 | D13: CMaupin | E13: CMaupin@gmail.com
A14: 880-78-4438 | B14: Letha Vela | C14: (206)-695-4997 | D14: CVela | E14: CVela@gmail.com
A15: 880-13-7933 | B15: Curtis Mercier | C15: (206)-690-2546 | D15: CMercier | E15: CMercier@gmail.com

Sheet HW(8an)
A1: Add a Data Validation List drop-down to cell A4. Then create a VLOOKUP formula to lookup a person's name and e-mail address.
B3: 2 | C3: 5
A4: Employee ID | B4: Employee Name | C4: Email
A5: 880-56-9343 | B5: =VLOOKUP($A5,$A$9:$E$15,B3,0) -> Ossie Givens | C5: =VLOOKUP($A5,$A$9:$E$15,C3,0) -> CGivens@yahoo.com
A8: Employee ID | B8: Employee Name | C8: Phone | D8: Login | E8: Email
A9: 880-26-6416 | B9: Colby Guerra | C9: (206)-571-8485 | D9: CGuerra | E9: CGuerra@gmail.com
A10: 880-19-1649 | B10: Andre Bader | C10: (206)-687-3000 | D10: CBader | E10: CBader@gmail.com
A11: 880-32-7767 | B11: Christal Conaway | C11: (206)-727-7960 | D11: CConaway | E11: CConaway@gmail.com
A12: 880-56-9343 | B12: Ossie Givens | C12: (206)-716-7417 | D12: CGivens | E12: CGivens@yahoo.com
A13: 880-40-4308 | B13: Lashanda Maupin | C13: (206)-561-9615 | D13: CMaupin | E13: CMaupin@gmail.com
A14: 880-78-4438 | B14: Letha Vela | C14: (206)-695-4997 | D14: CVela | E14: CVela@gmail.com
A15: 880-13-7933 | B15: Curtis Mercier | C15: (206)-690-2546 | D15: CMercier | E15: CMercier@gmail.com

Sheet HW(9)
A1: Goal is to create an Employee Time Sheet that calculates the hours worked and total gross pay for the following three employees:
A2: 1) Sioux Radcoolinator earns an hourly wage of $18.50 and worked from 9:15 AM to 5:30 PM with a 1 lunch break.
A3: 2) Chin Pham earns an hourly wage of $20.50 and worked from 10:00 AM to 5:30 PM with a 1/2 lunch break.
A4: 3) Battalion Smith earns an hourly wage of $17.00 and worked from 8:15 AM to 7:30 PM with a 1 lunch break.
A5: Enter the data into the spreadsheet.
A6: Add appropriate Stylistic and Number Formatting.
A7: Create the formulas necessary to calculate the gross pay (totals hours * hourly wage) for each employee.
A8: Add appropriate Page Setup.
A9: You can create the Excel solution on this sheet or a new sheet.

Sheet HW(9an)
A1: Goal is to create an Employee Time Sheet that calculates the hours worked and total gross pay for the following three employees:
A2: 1) Sioux Radcoolinator earns an hourly wage of $18.50 and worked from 9:15 AM to 5:30 PM with a 1 lunch break.
A3: 2) Chin Pham earns an hourly wage of $20.50 and worked from 10:00 AM to 5:30 PM with a 1/2 lunch break.
A4: 3) Battalion Smith earns an hourly wage of $17.00 and worked from 8:15 AM to 7:30 PM with a 1 lunch break.
A5: Enter the data into the spreadsheet.
A6: Add appropriate Stylistic and Number Formatting.
A7: Create the formulas necessary to calculate the gross pay (totals hours * hourly wage) for each employee.
A8: Add appropriate Page Setup.
A9: You can create the Excel solution on this sheet or a new sheet.
A12: Name | B12: Hourly Wage | C12: Time In | D12: Time Out | E12: Lunch Break | F12: Hours Worked | G12: Total Gross Pay
A13: Sioux Radcoolinator | B13: 18.5 | C13: 09:15:00 | D13: 17:30:00 | E13: 1 | F13: =(D13-C13)*24-E13 -> 7.25 | G13: =ROUND(F13*B13,2) -> 134.13
A14: Chin Pham | B14: 20.5 | C14: 10:00:00 | D14: 17:30:00 | E14: 0.5 | F14: =(D14-C14)*24-E14 -> 7 | G14: =ROUND(F14*B14,2) -> 143.5
A15: Battalion Smith | B15: 17 | C15: 08:15:00 | D15: 19:30:00 | E15: 1 | F15: =(D15-C15)*24-E15 -> 10.25 | G15: =ROUND(F15*B15,2) -> 174.25
A16: Totals: | F16: =SUM(F13:F15) -> 24.5 | G16: 451.88

Sheet HW(10)
A1: Find all the errors in the data set and in the formula solution, fix them, and written a list of all the errors that you find.
A4: Date | B4: Product Sold | D4: Product | E4: Count | G4: No. | H4: List Errors You Found:
A5: 2017-01-01 | B5: Quad | D5: Quad | E5: =COUNTIFS($B$5:$B$12,C5) -> 0 | G5: 1
A6: 22/20/2017 | B6: Quad | D6: Carlota | E6: =COUNTIFS($B$5:$B$12,C6) -> 0 | G6: 2
A7: 2017-01-13 | B7: Quad | D7: Tri Fly | E7: 0 | G7: 3
A8: 2017-01-28 | B8: Quad | G8: 4
A9: 2017-01-21 | B9: Carlota | G9: 5
A10: 2017-03-09 | B10: Qaud | G10: 6
A11: 2/31/2017 | B11: Tri Fly | G11: 7
A12: 2017-01-18 | B12: Quad

Sheet HW(10an)
A1: Find all the errors in the data set and in the formula solution, fix them, and written a list of all the errors that you find.
A4: Date | B4: Product Sold | D4: Product | E4: Count | G4: No. | H4: List Errors You Found:
A5: 2017-01-01 | B5: Quad | D5: Quad | E5: =COUNTIFS($B$5:$B$12,D5) -> 6 | G5: 1 | H5: C5 should be D5
A6: 2017-02-20 | B6: Quad | D6: Carlota | E6: =COUNTIFS($B$5:$B$12,D6) -> 1 | G6: 2 | H6: Date 22/20/2017 is not a real date. Maybe it was: 2/20/2017
A7: 2017-01-13 | B7: Quad | D7: Tri Fly | E7: 1 | G7: 3 | H7: Date 2/31/2017 is not a real date. Maybe it was: 2/28/2017
A8: 2017-01-28 | B8: Quad | G8: 4 | H8: "Quad " is D5 should be "Quad"
A9: 2017-01-21 | B9: Carlota | G9: 5 | H9: " Quad" in B6 should be "Quad"
A10: 2017-03-09 | B10: Quad | G10: 6 | H10: "Qaud" in B10 should be "Quad"
A11: 2017-02-28 | B11: Tri Fly | G11: 7 | H11: "Tri Fly" in D7 should be "Tri Fly"
A12: 2017-01-18 | B12: Quad

Sheet HW(11)
A1: Your goal is to add the 4 smallest (shortest times) for each round. Create an Array Formula that can do this.
B3: Add 4 Smallest Times | C3: Add 4 Smallest Times | D3: Add 4 Smallest Times
A6: Below are the Fast Catch Scores (How Fast you can throw and catch a boomerang 5 times):
A8: Thrower | B8: Time Round 1 | C8: Time Round 2 | D8: Time Round 3
A9: Billy | B9: 35.9 | C9: 35.24 | D9: 18.46
A10: Richard | B10: 30.66 | C10: 19.66 | D10: 40.97
A11: BetseyLew | B11: 31.14 | C11: 18.58 | D11: 20.41
A12: Taco | B12: 20.23 | C12: 22.24 | D12: 37.98
A13: Tyrone | B13: 33.59 | C13: 22.37 | D13: 26.53
A14: Shelia | B14: 38.73 | C14: 18.39 | D14: 41.54
A15: Mo | B15: 24.92 | C15: 42.19 | D15: 32.18
A16: Pham | B16: 36.03 | C16: 30.03 | D16: 34.37

Sheet HW(11an)
A1: Your goal is to add the 4 smallest (shortest times) for each round. Create an Array Formula that can do this.
B3: Add 4 Smallest Times | C3: Add 4 Smallest Times | D3: Add 4 Smallest Times | N3: Add 4 Smallest Times | O3: Add 4 Smallest Times | P3: Add 4 Smallest Times | R3: Add 4 Smallest Times | S3: Add 4 Smallest Times | T3: Add 4 Smallest Times
B4: =SUM(SMALL(B9:B16,{1,2,3,4})) -> 106.95 | C4: =SUM(SMALL(C9:C16,{1,2,3,4})) -> 78.87 | D4: =SUM(SMALL(D9:D16,{1,2,3,4})) -> 97.58 | N4: =SUM(_xlfn.AGGREGATE(15,4,B9:B16,{1,2,3,4})) -> 106.95 | O4: =SUM(_xlfn.AGGREGATE(15,4,C9:C16,{1,2,3,4})) -> 78.87 | P4: =SUM(_xlfn.AGGREGATE(15,4,D9:D16,{1,2,3,4})) -> 97.58 | R4: =SUMPRODUCT(SMALL(B9:B16,ROW(INDIRECT("1:"&$R$7)))) -> 106.95 | S4: =SUMPRODUCT(SMALL(C9:C16,ROW(INDIRECT("1:"&$R$7)))) -> 78.87 | T4: =SUMPRODUCT(SMALL(D9:D16,ROW(INDIRECT("1:"&$R$7)))) -> 97.58
A6: Below are the Fast Catch Scores (How Fast you can throw and catch a boomerang 5 times): | R6: Number to Add:
R7: 4
A8: Thrower | B8: Time Round 1 | C8: Time Round 2 | D8: Time Round 3
A9: Billy | B9: 35.9 | C9: 35.24 | D9: 18.46
A10: Richard | B10: 30.66 | C10: 19.66 | D10: 40.97
A11: BetseyLew | B11: 31.14 | C11: 18.58 | D11: 20.41
A12: Taco | B12: 20.23 | C12: 22.24 | D12: 37.98
A13: Tyrone | B13: 33.59 | C13: 22.37 | D13: 26.53
A14: Shelia | B14: 38.73 | C14: 18.39 | D14: 41.54
A15: Mo | B15: 24.92 | C15: 42.19 | D15: 32.18
A16: Pham | B16: 36.03 | C16: 30.03 | D16: 34.37
